fUSD/lending_fUSD_20250616
["ID","MTS","AMOUNT","RATE_DAILY","PERIOD"]
[366087233,1750056663813,-199.013944,0.00016602,2]
[366087234,1750056663824,-554.21,0.00016602,2]
[366087235,1750056663836,-771.76,0.00016602,2]
[366087236,1750056663847,-806.06,0.00016602,2]
[366087237,1750056663858,-490.0,0.00016602,2]
[366087238,1750056663869,-490.0,0.00016602,2]
[366087239,1750056663879,-499.27,0.00016602,2]
[366087240,1750056663890,-217.306492,0.00016602,2]
[366087241,1750056663901,-217.306492,0.00016602,2]
[366087242,1750056663912,-217.306492,0.00016602,2]
[366087243,1750056663923,-791.35,0.00016602,2]
[366087244,1750056663933,-849.26,0.00016602,2]
[366087245,1750056663943,-217.306492,0.00016602,2]
[366087246,1750056663954,-217.306492,0.00016602,2]
[366087247,1750056663964,-490.0,0.00016602,2]
[366087248,1750056663974,-217.306492,0.00016602,2]
[366087249,1750056663985,-490.0,0.00016602,2]
[366087250,1750056663996,-217.306492,0.00016602,2]
[366087251,1750056664006,-217.306492,0.00016602,2]
[366087252,1750056664016,-217.306492,0.00016602,2]
[366087253,1750056664033,-217.306492,0.00016602,2]
[366087254,1750056664046,-490.0,0.00016602,2]
[366087255,1750056664057,-217.306492,0.00016602,2]
[366087256,1750056664068,-217.30649,0.00016602,2]
[366087257,1750056664080,-603.22,0.00016602,2]
[366087258,1750056664092,-490.0,0.00016602,2]
[366087259,1750056664103,-490.0,0.00016602,2]
[366087260,1750056664115,-1418.5,0.00016602,2]
[366087261,1750056664127,-490.0,0.00016602,2]
[366087262,1750056664139,-736.22,0.00016602,2]
[366087263,1750056664149,-1764.07,0.00016602,2]
[366087264,1750056664166,-155.75274,0.00016602,2]
[366087265,1750056664178,-155.75274,0.00016602,2]
[366087266,1750056664189,-155.75274,0.00016602,2]
[366087267,1750056664201,-155.75274,0.00016602,2]
[366087268,1750056664212,-155.75274,0.00016602,2]
[366087269,1750056664223,-155.75274,0.00016602,2]
[366087270,1750056664235,-490.0,0.00016602,2]
[366087271,1750056664247,-155.75274,0.00016602,2]
[366087272,1750056664259,-2433.87,0.00016602,2]
[366087273,1750056664270,-155.75274,0.00016602,2]
[366087274,1750056664281,-155.75274,0.00016602,2]
[366087275,1750056664293,-155.75274,0.00016602,2]
[366087276,1750056664305,-490.0,0.00016602,2]
[366087277,1750056664317,-1149.07,0.00016602,2]
[366087278,1750056664328,-155.75274,0.00016602,2]
[366087279,1750056664339,-565.28,0.00016602,2]
[366087280,1750056664350,-155.75274,0.00016602,2]
[366087281,1750056664362,-490.0,0.00016602,2]
[366087282,1750056664373,-490.0,0.00016602,2]
[366087283,1750056664384,-1153.08,0.00016602,2]
[366087284,1750056664394,-1589.15,0.00016602,2]
[366087285,1750056664405,-490.0,0.00016602,2]
[366087286,1750056664416,-490.0,0.00016602,2]
[366087287,1750056664428,-490.0,0.00016602,2]
[366087288,1750056664439,-506.46,0.00016602,2]
[366087289,1750056664450,-490.0,0.00016602,2]
[366087290,1750056664461,-490.0,0.00016602,2]
[366087291,1750056664478,-490.0,0.00016602,2]
[366087292,1750056664489,-523.21,0.00016602,2]
[366087293,1750056664500,-151.0,0.00016602,2]
[366087294,1750056664511,-1625.02,0.00016602,2]
[366087295,1750056664524,-151.0,0.00016602,2]
[366087296,1750056664535,-151.0,0.00016602,2]
[366087297,1750056664546,-151.0,0.00016602,2]
[366087298,1750056664557,-151.0,0.00016602,2]
[366087299,1750056664568,-490.0,0.00016602,2]
[366087300,1750056664580,-151.0,0.00016602,2]
[366087301,1750056664592,-1482.932836,0.00016602,2]
[366087302,1750056664603,-1482.932836,0.00016602,2]
[366087303,1750056664614,-1482.932836,0.00016602,2]
[366087304,1750056664627,-1482.932836,0.00016602,2]
[366087305,1750056664639,-1482.932836,0.00016602,2]
[366087306,1750056664651,-1482.932836,0.00016602,2]
[366087307,1750056664663,-1211.31,0.00016602,2]
[366087308,1750056664674,-1482.932836,0.00016602,2]
[366087309,1750056664685,-1482.932836,0.00016602,2]
[366087310,1750056664695,-1482.932836,0.00016602,2]
[366087311,1750056664706,-1482.932836,0.00016602,2]
[366087312,1750056664717,-1482.932836,0.00016602,2]
[366087313,1750056664727,-1482.932836,0.00016602,2]
[366087314,1750056664741,-490.0,0.00016602,2]
[366087315,1750056664752,-490.0,0.00016602,2]
[366087316,1750056664763,-546.82,0.00016602,2]
[366087317,1750056664774,-1188.45,0.00016602,2]
[366087318,1750056664784,-703.62,0.00016602,2]
[366087319,1750056664795,-490.0,0.00016602,2]
[366087320,1750056664805,-1578.82,0.00016602,2]
[366087321,1750056664817,-490.0,0.00016602,2]
[366087322,1750056664828,-678.6,0.00016602,2]
[366087323,1750056664838,-490.0,0.00016602,2]
[366087324,1750056664849,-2303.06,0.00016602,2]
[366087325,1750056664859,-151.0,0.00016602,2]
[366087326,1750056664870,-151.0,0.00016602,2]
[366087327,1750056664881,-151.0,0.00016602,2]
[366087328,1750056664892,-151.0,0.00016602,2]
[366087329,1750056664902,-151.0,0.00016602,2]
[366087330,1750056664913,-490.0,0.00016602,2]
[366087331,1750056664929,-151.0,0.00016602,2]
[366087332,1750056664939,-490.0,0.00016602,2]
[366087333,1750056664951,-1729.12,0.00016602,2]
[366087334,1750056664964,-537.72,0.00016602,2]
[366087335,1750056664975,-1918.15,0.00016602,2]
[366087336,1750056664986,-501.82790841,0.00016602,2]
[366087337,1750056664997,-585.28,0.00016602,2]
[366087338,1750056665007,-490.0,0.00016602,2]
[366087339,1750056665019,-490.0,0.00016602,2]
[366087340,1750056665031,-1272.96,0.00016602,2]
[366087341,1750056665041,-659.73,0.00016602,2]
[366087342,1750056665053,-490.0,0.00016602,2]
[366087343,1750056665064,-736.61,0.00016602,2]
[366087344,1750056665075,-1245.32,0.00016602,2]
[366087345,1750056665086,-496.64097701,0.00016602,2]
[366087346,1750056665096,-490.0,0.00016602,2]
[366087347,1750056665107,-151.0,0.00016602,2]
[366087348,1750056665118,-151.0,0.00016602,2]
[366087349,1750056665128,-505.0,0.00016602,2]
[366087350,1750056665139,-151.0,0.00016602,2]
[366087351,1750056665150,-860.37,0.00016602,2]
[366087352,1750056665162,-2683.83,0.00016602,2]
[366087353,1750056665172,-151.0,0.00016602,2]
[366087354,1750056665183,-490.0,0.00016602,2]
[366087355,1750056665194,-151.0,0.00016602,2]
[366087356,1750056665204,-531.12,0.00016602,2]
[366087357,1750056665215,-151.0,0.00016602,2]
[366087358,1750056665227,-490.0,0.00016602,2]
[366087359,1750056665237,-490.0,0.00016602,2]
[366087360,1750056665248,-1363.88,0.00016602,2]
[366087361,1750056665259,-151.0,0.00016602,2]
[366087362,1750056665270,-1617.14,0.00016602,2]
[366087363,1750056665282,-151.0,0.00016602,2]
[366087364,1750056665292,-525.59,0.00016602,2]
[366087365,1750056665304,-151.0,0.00016602,2]
[366087366,1750056665315,-151.0,0.00016602,2]
[366087367,1750056665326,-151.0,0.00016602,2]
[366087368,1750056665337,-151.0,0.00016602,2]
[366087369,1750056665347,-151.0,0.00016602,2]
[366087370,1750056665358,-775.55,0.00016602,2]
[366087371,1750056665381,-151.0,0.00016602,2]
[366087372,1750056665392,-151.0,0.00016602,2]
[366087373,1750056665403,-151.0,0.00016602,2]
[366087374,1750056665415,-490.0,0.00016602,2]
[366087375,1750056665425,-852.13,0.00016602,2]
[366087376,1750056665436,-177.527796,0.00016602,2]
[366087377,1750056665447,-490.0,0.00016602,2]
[366087378,1750056665458,-490.0,0.00016602,2]
[366087379,1750056665469,-729.66,0.00016602,2]
[366087380,1750056665480,-632.1,0.00016602,2]
[366087381,1750056665490,-1422.83,0.00016602,2]
[366087382,1750056665501,-151.0,0.00016602,2]
[366087383,1750056665512,-569.12,0.00016602,2]
[366087384,1750056665523,-151.0,0.00016602,2]
[366087385,1750056665534,-151.0,0.00016602,2]
[366087386,1750056665545,-502.87,0.00016602,2]
[366087387,1750056665555,-490.0,0.00016602,2]
[366087388,1750056665566,-151.0,0.00016602,2]
[366087389,1750056665578,-1198.23,0.00016602,2]
[366087390,1750056665589,-151.0,0.00016602,2]
[366087391,1750056665599,-151.0,0.00016602,2]
[366087392,1750056665610,-152.487399,0.00016602,2]
[366087393,1750056665620,-1631.08,0.00016602,2]
[366087394,1750056665631,-490.0,0.00016602,2]
[366087395,1750056665642,-151.0,0.00016602,2]
[366087396,1750056665653,-198.974546,0.00016602,2]
[366087397,1750056665664,-727.22,0.00016602,2]
[366087398,1750056665674,-1531.17,0.00016602,2]
[366087399,1750056665685,-490.0,0.00016602,2]
[366087400,1750056665695,-642.5,0.00016602,2]
[366087401,1750056665707,-1961.84,0.00016602,2]
[366087402,1750056665718,-538.5,0.00016602,2]
[366087403,1750056665729,-742.15,0.00016602,2]
[366087404,1750056665740,-673.783152,0.00016602,2]
[366087405,1750056665750,-673.783152,0.00016602,2]
[366087406,1750056665760,-673.783152,0.00016602,2]
[366087407,1750056665771,-673.783152,0.00016602,2]
[366087408,1750056665781,-551.54,0.00016602,2]
[366087409,1750056665792,-673.783152,0.00016602,2]
[366087410,1750056665807,-673.783152,0.00016602,2]
[366087411,1750056665818,-490.0,0.00016602,2]
[366087412,1750056665829,-673.783152,0.00016602,2]
[366087413,1750056665840,-490.0,0.00016602,2]
[366087414,1750056665850,-673.783152,0.00016602,2]
[366087415,1750056665861,-320.622226,0.00016602,2]
[366087416,1750056665871,-539.77,0.00016602,2]
[366087417,1750056665882,-320.622226,0.00016602,2]
[366087418,1750056665893,-673.783152,0.00016602,2]
[366087419,1750056665905,-320.622226,0.00016602,2]
[366087420,1750056666138,-673.783152,0.00016602,2]
[366087421,1750056666150,-1207.99,0.00016602,2]
[366087422,1750056666163,-320.622226,0.00016602,2]
[366087423,1750056666179,-673.783152,0.00016602,2]
[366087424,1750056666189,-627.11,0.00016602,2]
[366087425,1750056666199,-490.0,0.00016602,2]
[366087426,1750056666210,-320.622226,0.00016602,2]
[366087427,1750056666220,-673.783148,0.00016602,2]
[366087428,1750056666231,-320.622226,0.00016602,2]
[366087429,1750056666240,-490.0,0.00016602,2]
[366087430,1750056666251,-490.0,0.00016602,2]
[366087431,1750056666260,-320.622226,0.00016602,2]
[366087432,1750056666270,-320.622226,0.00016602,2]
[366087433,1750056666280,-320.622226,0.00016602,2]
[366087434,1750056666290,-615.8,0.00016602,2]
[366087435,1750056666301,-320.622226,0.00016602,2]
[366087436,1750056666310,-320.622226,0.00016602,2]
[366087437,1750056666321,-320.622226,0.00016602,2]
[366087438,1750056666331,-490.0,0.00016602,2]
[366087439,1750056666341,-490.0,0.00016602,2]
[366087440,1750056666351,-490.0,0.00016602,2]
[366087441,1750056666361,-1702.49,0.00016602,2]
[366087442,1750056666371,-490.0,0.00016602,2]
[366087443,1750056666381,-490.0,0.00016602,2]
[366087444,1750056666391,-628.59,0.00016602,2]
[366087445,1750056666401,-1029.77,0.00016602,2]
[366087446,1750056666410,-490.0,0.00016602,2]
[366087447,1750056666420,-490.0,0.00016602,2]
[366087448,1750056666430,-490.0,0.00016602,2]
[366087449,1750056666440,-523.49,0.00016602,2]
[366087450,1750056666449,-1416.38,0.00016602,2]
[366087451,1750056666459,-151.0,0.00016602,2]
[366087452,1750056666470,-151.0,0.00016602,2]
[366087453,1750056666479,-1371.65,0.00016602,2]
[366087454,1750056666489,-151.0,0.00016602,2]
[366087455,1750056666499,-151.0,0.00016602,2]
[366087456,1750056666508,-151.0,0.00016602,2]
[366087457,1750056666518,-151.0,0.00016602,2]
[366087458,1750056666528,-151.0,0.00016602,2]
[366087459,1750056666538,-151.0,0.00016602,2]
[366087460,1750056666548,-490.0,0.00016602,2]
[366087461,1750056666558,-151.0,0.00016602,2]
[366087462,1750056666567,-151.0,0.00016602,2]
[366087463,1750056666577,-1340.82,0.00016602,2]
[366087464,1750056666587,-151.0,0.00016602,2]
[366087465,1750056666597,-705.38,0.00016602,2]
[366087466,1750056666607,-151.0,0.00016602,2]
[366087467,1750056666617,-151.0,0.00016602,2]
[366087468,1750056666627,-490.0,0.00016602,2]
[366087469,1750056666636,-151.0,0.00016602,2]
[366087470,1750056666646,-490.0,0.00016602,2]
[366087471,1750056666655,-151.0,0.00016602,2]
[366087472,1750056666665,-1084.16,0.00016602,2]
[366087473,1750056666675,-151.0,0.00016602,2]
[366087474,1750056666684,-151.0,0.00016602,2]
[366087475,1750056666694,-151.0,0.00016602,2]
[366087476,1750056666704,-151.0,0.00016602,2]
[366087477,1750056666713,-262.815306,0.00016602,2]
[366087478,1750056666723,-151.0,0.00016602,2]
[366087479,1750056666733,-151.0,0.00016602,2]
[366087480,1750056666742,-151.0,0.00016602,2]
[366087481,1750056666752,-628.14,0.00016602,2]
[366087482,1750056666761,-234.832361,0.00016602,2]
[366087483,1750056666770,-536.78,0.00016602,2]
[366087484,1750056666780,-300.0,0.00016602,2]
[366087485,1750056666789,-490.0,0.00016602,2]
[366087486,1750056666800,-1923.96,0.00016602,2]
[366087487,1750056666810,-490.0,0.00016602,2]
[366087488,1750056666820,-1421.62,0.00016602,2]
[366087489,1750056666829,-1566.86,0.00016602,2]
[366087490,1750056666840,-507.0,0.00016602,2]
[366087491,1750056666850,-794.0,0.00016602,2]
[366087492,1750056666860,-490.0,0.00016602,2]
[366087493,1750056666870,-490.0,0.00016602,2]
[366087494,1750056666879,-1092.39,0.00016602,2]
[366087495,1750056666889,-1145.09,0.00016602,2]
[366087496,1750056666899,-275.75,0.00016602,2]
[366087497,1750056666908,-2278.47,0.00016602,2]
[366087498,1750056666918,-1924.45,0.00016602,2]
[366087499,1750056666929,-578.19,0.00016602,2]
[366087500,1750056666938,-490.0,0.00016602,2]
[366087501,1750056666948,-24183.34,0.00016602,2]
[366087502,1750056666958,-666.47,0.00016602,2]
[366087503,1750056666969,-889.14,0.00016602,2]
[366087504,1750056666980,-490.0,0.00016602,2]
[366087505,1750056666990,-490.0,0.00016602,2]
[366087506,1750056666999,-493.79,0.00016602,2]
[366087507,1750056667009,-1809.23,0.00016602,2]
[366087508,1750056667019,-490.0,0.00016602,2]
[366087509,1750056667030,-942.57,0.00016602,2]
[366087510,1750056667040,-535.7,0.00016602,2]
[366087511,1750056667049,-490.0,0.00016602,2]
[366087512,1750056667059,-490.0,0.00016602,2]
[366087513,1750056667070,-490.0,0.00016602,2]
[366087514,1750056667080,-2918.71,0.00016602,2]
[366087515,1750056667090,-1972.49,0.00016602,2]
[366087516,1750056667100,-332.01493035,0.00016602,2]
[366087517,1750056667110,-995.37,0.00016602,2]
[366087518,1750056667120,-490.0,0.00016602,2]
[366087519,1750056667129,-490.0,0.00016602,2]
[366087520,1750056667139,-490.0,0.00016602,2]
[366087521,1750056667149,-1276.81,0.00016602,2]
[366087522,1750056667160,-494.13,0.00016602,2]
[366087523,1750056667170,-1888.85,0.00016602,2]
[366087524,1750056667179,-1270.72,0.00016602,2]
[366087525,1750056667189,-490.0,0.00016602,2]
[366087526,1750056667199,-354.550291,0.00016602,2]
[366087527,1750056667209,-354.550291,0.00016602,2]
[366087528,1750056667219,-852.89,0.00016602,2]
[366087529,1750056667228,-354.550291,0.00016602,2]
[366087530,1750056667238,-354.550291,0.00016602,2]
[366087531,1750056667249,-354.550291,0.00016602,2]
[366087532,1750056667259,-354.550291,0.00016602,2]
[366087533,1750056667268,-1272.26,0.00016602,2]
[366087534,1750056667278,-354.550291,0.00016602,2]
[366087535,1750056667288,-1369.31,0.00016602,2]
[366087536,1750056667298,-354.550291,0.00016602,2]
[366087537,1750056667308,-354.550291,0.00016602,2]
[366087538,1750056667317,-354.550291,0.00016602,2]
[366087539,1750056667327,-490.0,0.00016602,2]
[366087540,1750056667337,-354.550291,0.00016602,2]
[366087541,1750056667347,-490.0,0.00016602,2]
[366087542,1750056667356,-354.550295,0.00016602,2]
[366087543,1750056667366,-490.0,0.00016602,2]
[366087544,1750056667376,-490.0,0.00016602,2]
[366087545,1750056667386,-2237.97,0.00016602,2]
[366087546,1750056667399,-4169.98,0.00016602,2]
[366087547,1750056667410,-264.61577739,0.00016602,2]
[366087548,1750056667421,-490.0,0.00016602,2]
[366087549,1750056667432,-3614.9,0.00016602,2]
[366087550,1750056667443,-531.72,0.00016602,2]
[366087551,1750056667454,-1146.06,0.00016602,2]
[366087552,1750056667463,-490.0,0.00016602,2]
[366087553,1750056667473,-499.21,0.00016602,2]
[366087554,1750056667484,-753.64,0.00016602,2]
[366087555,1750056667494,-490.0,0.00016602,2]
[366087556,1750056667504,-151.0,0.00016602,2]
[366087557,1750056667516,-151.0,0.00016602,2]
[366087558,1750056667526,-490.0,0.00016602,2]
[366087559,1750056667536,-151.0,0.00016602,2]
[366087560,1750056667547,-151.0,0.00016602,2]
[366087561,1750056667556,-490.0,0.00016602,2]
[366087562,1750056667567,-151.0,0.00016602,2]
[366087563,1750056667577,-490.0,0.00016602,2]
[366087564,1750056667588,-151.0,0.00016602,2]
[366087565,1750056667598,-1034.05,0.00016602,2]
[366087566,1750056667608,-4827.81,0.00016602,2]
[366087567,1750056667621,-490.0,0.00016602,2]
[366087568,1750056667631,-1647.9,0.00016602,2]
[366087569,1750056667640,-490.0,0.00016602,2]
[366087570,1750056667650,-490.0,0.00016602,2]
[366087571,1750056667660,-490.0,0.00016602,2]
[366087572,1750056667670,-1222.65,0.00016602,2]
[366087573,1750056667682,-588.49,0.00016602,2]
[366087574,1750056667692,-181.984119,0.00016602,2]
[366087575,1750056667703,-181.984119,0.00016602,2]
[366087576,1750056667713,-181.984119,0.00016602,2]
[366087577,1750056667722,-181.984119,0.00016602,2]
[366087578,1750056667732,-3682.66,0.00016602,2]
[366087579,1750056667741,-601.86,0.00016602,2]
[366087580,1750056667751,-181.984119,0.00016602,2]
[366087581,1750056667760,-181.984119,0.00016602,2]
[366087582,1750056667770,-490.0,0.00016602,2]
[366087583,1750056667779,-181.984119,0.00016602,2]
[366087584,1750056667788,-776.82,0.00016602,2]
[366087585,1750056667798,-181.984111,0.00016602,2]
[366087586,1750056667808,-606.29,0.00016602,2]
[366087587,1750056667819,-490.0,0.00016602,2]
[366087588,1750056667830,-9437.92,0.00016602,2]
[366087589,1750056667839,-654.88,0.00016602,2]
[366087590,1750056667849,-490.0,0.00016602,2]
[366087591,1750056667860,-490.0,0.00016602,2]
[366087592,1750056667870,-490.0,0.00016602,2]
[366087593,1750056667880,-490.0,0.00016602,2]
[366087594,1750056667889,-731.34,0.00016602,2]
[366087595,1750056667899,-1986.77,0.00016602,2]
[366087596,1750056667908,-1628.57,0.00016602,2]
[366087597,1750056667918,-490.0,0.00016602,2]
[366087598,1750056667928,-2873.88,0.00016602,2]
[366087599,1750056667937,-490.0,0.00016602,2]
[366087600,1750056667947,-2537.43,0.00016602,2]
[366087601,1750056667956,-1573.51,0.00016602,2]
[366087602,1750056667966,-490.0,0.00016602,2]
[366087603,1750056667976,-1949.42,0.00016602,2]
[366087604,1750056667986,-747.53,0.00016602,2]
[366087605,1750056667996,-465.50969884,0.00016602,2]
[366087606,1750056668006,-490.0,0.00016602,2]
[366087607,1750056668015,-2253.19,0.00016602,2]
[366087608,1750056668025,-539.97,0.00016602,2]
[366087609,1750056668035,-490.0,0.00016602,2]
[366087610,1750056668045,-490.0,0.00016602,2]
[366087611,1750056668055,-1207.36,0.00016602,2]
[366087612,1750056668066,-490.0,0.00016602,2]
[366087613,1750056668076,-151.0,0.00016602,2]
[366087614,1750056668086,-490.0,0.00016602,2]
[366087615,1750056668096,-587.6,0.00016602,2]
[366087616,1750056668107,-151.0,0.00016602,2]
[366087617,1750056668117,-2193.01,0.00016602,2]
[366087618,1750056668127,-1013.07,0.00016602,2]
[366087619,1750056668136,-151.0,0.00016602,2]
[366087620,1750056668146,-151.0,0.00016602,2]
[366087621,1750056668158,-3378.33,0.00016602,2]
[366087622,1750056668169,-1267.31,0.00016602,2]
[366087623,1750056668179,-293.104791,0.00016602,2]
[366087624,1750056668190,-620.78,0.00016602,2]
[366087625,1750056668200,-293.104791,0.00016602,2]
[366087626,1750056668210,-293.104791,0.00016602,2]
[366087627,1750056668220,-293.104791,0.00016602,2]
[366087628,1750056668229,-556.75,0.00016602,2]
[366087629,1750056668241,-281.834473,0.00016602,2]
[366087630,1750056668252,-1135.89,0.00016602,2]
[366087631,1750056668262,-293.104791,0.00016602,2]
[366087632,1750056668272,-293.104791,0.00016602,2]
[366087633,1750056668281,-661.71,0.00016602,2]
[366087634,1750056668291,-490.0,0.00016602,2]
[366087635,1750056668301,-2553.33,0.00016602,2]
[366087636,1750056668311,-293.104791,0.00016602,2]
[366087637,1750056668321,-501.01,0.00016602,2]
[366087638,1750056668331,-293.104791,0.00016602,2]
[366087639,1750056668341,-1866.26,0.00016602,2]
[366087640,1750056668351,-2459.88,0.00016602,2]
[366087641,1750056668360,-293.104791,0.00016602,2]
[366087642,1750056668370,-293.104791,0.00016602,2]
[366087643,1750056668379,-490.0,0.00016602,2]
[366087644,1750056668390,-1900.71,0.00016602,2]
[366087645,1750056668400,-293.104791,0.00016602,2]
[366087646,1750056668409,-660.69,0.00016602,2]
[366087647,1750056668420,-2258.55,0.00016602,2]
[366087648,1750056668431,-293.1048,0.00016602,2]
[366087649,1750056668440,-10179.88,0.00016602,2]
[366087650,1750056668450,-490.0,0.00016602,2]
[366087651,1750056668460,-490.0,0.00016602,2]
[366087652,1750056668469,-507.48,0.00016602,2]
[366087653,1750056668479,-490.0,0.00016602,2]
[366087654,1750056668488,-1643.95,0.00016602,2]
[366087655,1750056668498,-823.51,0.00016602,2]
[366087656,1750056668508,-490.0,0.00016602,2]
[366087657,1750056668517,-1034.76,0.00016602,2]
[366087658,1750056668527,-2438.44,0.00016602,2]
[366087659,1750056668537,-490.0,0.00016602,2]
[366087660,1750056668547,-456.108707,0.00016602,2]
[366087661,1750056668556,-6904.63,0.00016602,2]
[366087662,1750056668568,-456.108707,0.00016602,2]
[366087663,1750056668578,-456.108707,0.00016602,2]
[366087664,1750056668587,-490.0,0.00016602,2]
[366087665,1750056668598,-9277.24,0.00016602,2]
[366087666,1750056668607,-456.108707,0.00016602,2]
[366087667,1750056668617,-490.0,0.00016602,2]
[366087668,1750056668627,-456.108707,0.00016602,2]
[366087669,1750056668637,-456.108707,0.00016602,2]
[366087670,1750056668647,-1474.41,0.00016602,2]
[366087671,1750056668656,-456.108707,0.00016602,2]
[366087672,1750056668666,-1460.5,0.00016602,2]
[366087673,1750056668675,-456.108707,0.00016602,2]
[366087674,1750056668685,-490.0,0.00016602,2]
[366087675,1750056668695,-456.108707,0.00016602,2]
[366087676,1750056668705,-490.0,0.00016602,2]
[366087677,1750056668715,-596.81,0.00016602,2]
[366087678,1750056668725,-456.108707,0.00016602,2]
[366087679,1750056668736,-456.108707,0.00016602,2]
[366087680,1750056668745,-456.108699,0.00016602,2]
[366087681,1750056668754,-1474.85,0.00016602,2]
[366087682,1750056668764,-490.0,0.00016602,2]
[366087683,1750056668773,-1465.69,0.00016602,2]
[366087684,1750056668783,-214.308577,0.00016602,2]
[366087685,1750056668793,-2152.15,0.00016602,2]
[366087686,1750056668803,-214.308577,0.00016602,2]
[366087687,1750056668814,-593.15,0.00016602,2]
[366087688,1750056668824,-214.308577,0.00016602,2]
[366087689,1750056668833,-1155.23,0.00016602,2]
[366087690,1750056668843,-214.308577,0.00016602,2]
[366087691,1750056668856,-214.308577,0.00016602,2]
[366087692,1750056668866,-2255.31,0.00016602,2]
[366087693,1750056668876,-819.49,0.00016602,2]
[366087694,1750056668887,-490.0,0.00016602,2]
[366087695,1750056668897,-916.9,0.00016602,2]
[366087696,1750056668907,-214.308577,0.00016602,2]
[366087697,1750056668917,-214.308577,0.00016602,2]
[366087698,1750056668927,-708.36,0.00016602,2]
[366087699,1750056668937,-214.308577,0.00016602,2]
[366087700,1750056668947,-587.69,0.00016602,2]
[366087701,1750056668956,-214.308577,0.00016602,2]
[366087702,1750056668965,-214.308583,0.00016602,2]
[366087703,1750056668975,-2353.06,0.00016602,2]
[366087704,1750056668987,-853.416478,0.00016602,2]
[366087705,1750056669000,-853.416478,0.00016602,2]
[366087706,1750056669010,-853.416478,0.00016602,2]
[366087707,1750056669020,-853.416478,0.00016602,2]
[366087708,1750056669030,-490.0,0.00016602,2]
[366087709,1750056669040,-4297.95,0.00016602,2]
[366087710,1750056669049,-630.37,0.00016602,2]
[366087711,1750056669059,-1482.67,0.00016602,2]
[366087712,1750056669069,-490.0,0.00016602,2]
[366087713,1750056669079,-490.0,0.00016602,2]
[366087714,1750056669089,-853.416478,0.00016602,2]
[366087715,1750056669099,-490.0,0.00016602,2]
[366087716,1750056669109,-853.416478,0.00016602,2]
[366087717,1750056669119,-853.416478,0.00016602,2]
[366087718,1750056669129,-2399.57,0.00016602,2]
[366087719,1750056669140,-1303.05,0.00016602,2]
[366087720,1750056669151,-853.41648,0.00016602,2]
[366087721,1750056669165,-1089.22,0.00016602,2]
[366087722,1750056669175,-490.0,0.00016602,2]
[366087723,1750056669186,-2827.95,0.00016602,2]
[366087724,1750056669197,-154.398588,0.00016602,2]
[366087725,1750056669207,-154.398588,0.00016602,2]
[366087726,1750056669218,-154.398588,0.00016602,2]
[366087727,1750056669228,-154.398588,0.00016602,2]
[366087728,1750056669238,-154.398588,0.00016602,2]
[366087729,1750056669249,-154.398588,0.00016602,2]
[366087730,1750056669259,-4777.42,0.00016602,2]
[366087731,1750056669269,-490.0,0.00016602,2]
[366087732,1750056669279,-154.398588,0.00016602,2]